bitfinex/quotes_SOLUSD_20230120
["timestamp","ask_amount","ask_price","bid_price","bid_amount"]
[1674213378023,17.0,21.196,21.185,10.0]
[1674213380127,21.92,21.197,21.185,10.0]
[1674213380308,35.38,21.2,21.186,20.0]
[1674213380521,35.38,21.201,21.187,35.41]
[1674213380747,35.38,21.202,21.19,15.22]
[1674213380960,35.38,21.204,21.19,15.22]
[1674213381174,35.38,21.204,21.191,10.0]
[1674213382225,10.99,21.203,21.191,10.0]
[1674213382834,0.99,21.203,21.191,10.0]
[1674213383048,1.92,21.202,21.191,10.0]
[1674213384011,1.92,21.202,21.191,45.4]
[1674213384535,1.92,21.202,21.191,35.4]
[1674213384748,18.92,21.202,21.188,45.4]
[1674213387352,18.92,21.202,21.19,15.22]
[1674213387574,17.0,21.201,21.192,10.0]
[1674213387790,1.92,21.202,21.192,10.0]
[1674213392004,1.92,21.202,21.191,35.4]
[1674213392192,18.92,21.202,21.189,35.4]
[1674213392826,18.92,21.202,21.19,10.0]
[1674213393237,1.92,21.202,21.19,10.0]
[1674213394201,18.92,21.202,21.19,10.0]
[1674213394412,1.92,21.202,21.19,10.0]
[1674213394625,18.92,21.202,21.19,10.0]
[1674213395149,1.92,21.202,21.19,10.0]
[1674213395549,28.92,21.202,21.189,35.4]
[1674213395759,28.92,21.202,21.19,10.0]
[1674213395968,18.92,21.202,21.19,10.0]
[1674213396393,17.96,21.202,21.19,10.0]
[1674213396611,0.96,21.202,21.19,10.0]
[1674213397877,17.96,21.202,21.191,35.4]
[1674213398078,17.0,21.201,21.192,10.0]
[1674213398288,0.96,21.2,21.192,10.0]
[1674213398510,0.96,21.199,21.192,10.0]
[1674213398703,0.96,21.198,21.192,10.0]
[1674213399118,0.96,21.201,21.192,10.0]
[1674213399330,0.96,21.202,21.192,10.0]
[1674213399541,0.96,21.201,21.192,10.0]
[1674213400412,0.96,21.201,21.194,10.0]
[1674213401025,0.96,21.201,21.192,10.0]
[1674213402107,0.96,21.202,21.192,10.0]
[1674213402285,0.96,21.202,21.193,35.4]
[1674213402495,0.96,21.202,21.194,10.0]
[1674213404089,17.96,21.202,21.194,10.0]
[1674213404311,0.96,21.202,21.194,10.0]
[1674213404491,0.96,21.201,21.194,10.0]
[1674213404700,0.96,21.201,21.192,45.4]
[1674213406191,0.96,21.201,21.193,16.99011719]
[1674213406398,0.96,21.201,21.194,10.0]
[1674213406813,0.96,21.201,21.195,16.99011719]
[1674213408091,0.96,21.202,21.195,16.99011719]
[1674213408303,0.96,21.202,21.196,10.0]
[1674213408819,0.96,21.202,21.197,16.99011719]
[1674213409462,0.99,21.203,21.197,16.99011719]
[1674213411351,0.99,21.203,21.198,10.0]
[1674213411876,0.99,21.203,21.2,10.0]
[1674213412283,0.99,21.203,21.2,26.99011719]
[1674213414196,0.99,21.203,21.2,10.0]
[1674213414691,0.99,21.203,21.197,35.39]
[1674213414904,0.99,21.203,21.195,35.39]
[1674213417238,0.99,21.203,21.196,10.0]
[1674213423335,0.99,21.203,21.195,52.38011719]
[1674213423545,1.92,21.202,21.195,52.38011719]
[1674213423732,1.92,21.202,21.195,35.39]
[1674213424578,1.92,21.202,21.193,35.4]
[1674213424790,1.92,21.202,21.192,45.4]
[1674213425852,1.92,21.202,21.192,10.0]
[1674213427540,1.92,21.202,21.193,16.99011719]
[1674213427728,1.92,21.202,21.194,10.0]
[1674213428160,1.92,21.202,21.194,26.99011719]
[1674213428161,0.96,21.202,21.194,26.99011719]
[1674213428587,0.99,21.203,21.196,10.0]
[1674213430478,0.99,21.203,21.195,35.39]
[1674213430797,0.99,21.203,21.196,10.0]
[1674213436794,0.99,21.203,21.195,35.39]
[1674213436992,1.92,21.202,21.195,35.39]
[1674213437199,1.92,21.202,21.194,16.99011719]
[1674213437409,1.92,21.202,21.196,16.99011719]
[1674213437836,1.92,21.202,21.192,45.4]
[1674213442356,1.92,21.202,21.192,35.4]
[1674213442576,1.92,21.202,21.191,35.4]
[1674213442788,18.92,21.202,21.191,35.4]
[1674213443099,18.92,21.202,21.192,10.0]
[1674213443288,1.92,21.202,21.192,10.0]
[1674213444866,18.92,21.202,21.192,10.0]
[1674213447078,18.92,21.202,21.191,35.4]
[1674213447289,18.92,21.202,21.186,35.41]
[1674213447290,35.38,21.201,21.186,35.41]
[1674213447507,21.92,21.2,21.186,35.41]
[1674213447731,35.39,21.199,21.184,35.41]
[1674213448041,38.92,21.198,21.182,35.41]
[1674213448231,10.0,21.197,21.183,10.0]
[1674213448443,18.92,21.196,21.184,35.41]
[1674213448759,20.0,21.198,21.184,35.41]
[1674213448970,20.0,21.198,21.185,10.0]
[1674213449182,113.2344,21.201,21.187,10.0]
[1674213449183,20.0,21.2,21.187,10.0]
[1674213449397,20.0,21.2,21.188,35.4]
[1674213449707,78.4158778,21.206,21.188,35.4]
[1674213450041,17.96,21.202,21.189,10.0]
[1674213450227,0.96,21.201,21.19,35.32256728]
[1674213450445,0.96,21.2,21.188,35.4]
[1674213450653,17.96,21.2,21.188,35.4]
[1674213450867,0.96,21.199,21.188,35.4]
[1674213451069,0.96,21.198,21.188,35.4]
[1674213451511,0.96,21.198,21.189,10.0]
[1674213451721,0.96,21.198,21.19,35.4]
[1674213452985,0.99,21.203,21.19,35.4]
[1674213453173,0.99,21.203,21.191,10.0]
[1674213453382,0.99,21.203,21.192,35.4]
[1674213454556,1.92,21.202,21.193,10.0]
[1674213456903,1.92,21.202,21.192,35.4]
[1674213457213,18.92,21.202,21.191,45.4]
[1674213457745,18.92,21.202,21.191,10.0]
[1674213458050,18.92,21.202,21.19,35.4]
[1674213460369,18.92,21.202,21.191,10.0]
[1674213461505,18.92,21.202,21.19,35.34]
[1674213462265,18.92,21.202,21.191,10.0]
[1674213463606,17.0,21.201,21.192,35.4]
[1674213463816,1.92,21.2,21.192,35.4]
[1674213464038,18.92,21.202,21.192,35.4]
[1674213464235,0.96,21.199,21.192,35.4]
[1674213464445,0.96,21.198,21.192,35.4]
[1674213464666,0.96,21.197,21.192,35.4]
[1674213464879,0.99,21.203,21.193,10.0]
[1674213465730,0.99,21.203,21.192,35.4]
[1674213466045,0.96,21.202,21.192,35.4]
[1674213466257,0.96,21.201,21.192,35.4]
[1674213466473,0.96,21.2,21.192,35.4]
[1674213467094,0.96,21.2,21.193,10.0]
[1674213469608,0.99,21.203,21.194,16.99011719]
[1674213469821,0.99,21.203,21.195,35.39]
[1674213471177,0.96,21.202,21.195,35.39]
[1674213471515,0.99,21.203,21.196,10.0]
[1674213471717,1.92,21.202,21.196,10.0]
[1674213472037,0.96,21.201,21.196,16.99011719]
[1674213472770,0.99,21.203,21.195,10.0]
[1674213474537,1.92,21.202,21.195,10.0]
[1674213475504,0.99,21.203,21.195,10.0]
[1674213480552,0.96,21.202,21.194,35.39]
[1674213480756,0.99,21.203,21.194,35.39]
[1674213481367,1.92,21.202,21.194,35.39]
[1674213482219,1.92,21.202,21.193,45.4]
[1674213485811,1.92,21.202,21.193,35.4]
[1674213486522,18.92,21.202,21.193,35.4]
[1674213486855,1.92,21.202,21.193,35.4]
[1674213489694,1.92,21.202,21.194,10.0]
[1674213495687,0.99,21.203,21.194,10.0]
[1674213495924,1.92,21.202,21.196,10.0]
[1674213496546,0.99,21.203,21.196,10.0]
[1674213496734,0.99,21.203,21.197,35.39]
[1674213497157,0.99,21.203,21.198,10.0]
[1674213498015,0.99,21.203,21.197,35.39]
[1674213499798,0.99,21.203,21.195,35.39]
[1674213500539,0.96,21.202,21.195,35.39]
[1674213500727,1.92,21.202,21.195,35.39]
[1674213507891,0.99,21.203,21.195,35.39]
[1674213508210,0.99,21.203,21.196,10.0]
[1674213509666,0.99,21.203,21.197,20.0]
[1674213509869,0.99,21.203,21.198,35.39]
[1674213510091,68.4158778,21.206,21.198,35.39]
[1674213510300,68.4158778,21.206,21.2,15.22]
[1674213510627,68.4158778,21.206,21.201,10.0]
[1674213511483,68.4158778,21.206,21.2,50.6]
[1674213511792,68.4158778,21.206,21.201,10.0]
[1674213512416,24.8058778,21.206,21.202,35.38]
[1674213514418,35.36,21.217,21.203,10.0]
[1674213514632,150.1743,21.218,21.21,15.15]
[1674213514826,20.0,21.217,21.21,15.15]
[1674213515036,10.0,21.216,21.21,15.15]
[1674213516106,0.96,21.215,21.21,15.15]
[1674213516422,0.96,21.215,21.204,35.38]
[1674213516621,0.96,21.214,21.203,10.0]
[1674213516824,0.96,21.213,21.204,35.38]
[1674213517030,0.96,21.212,21.204,35.38]
[1674213517368,0.96,21.212,21.2,15.13]
[1674213517589,0.96,21.211,21.2,15.13]
[1674213517772,0.96,21.21,21.2,15.13]
[1674213517979,0.96,21.209,21.2,15.13]
[1674213518189,0.96,21.208,21.2,15.13]
[1674213521264,0.96,21.209,21.2,15.13]
[1674213521483,0.96,21.21,21.202,10.0]
[1674213521668,0.96,21.209,21.202,10.0]
[1674213522401,35.36,21.215,21.202,10.0]
[1674213523573,0.96,21.214,21.202,10.0]
[1674213523791,17.96,21.214,21.202,39.08]
[1674213524003,0.96,21.214,21.202,39.08]
[1674213524514,35.36,21.216,21.202,39.08]
[1674213524724,45.35,21.218,21.202,39.08]
[1674213525056,10.0,21.216,21.202,39.08]
[1674213525876,0.96,21.215,21.202,39.08]
[1674213526087,0.96,21.214,21.202,39.08]
[1674213526604,10.96,21.214,21.202,30.08]
[1674213526815,17.96,21.213,21.202,30.08]
[1674213527039,0.96,21.212,21.202,30.08]
[1674213527250,0.96,21.211,21.202,30.08]
[1674213527466,0.96,21.21,21.202,29.08]
[1674213528413,0.96,21.21,21.201,29.06]
[1674213528618,0.96,21.21,21.2,25.13]
[1674213529050,0.96,21.21,21.2,15.13]
[1674213530206,0.96,21.21,21.2,25.13]
[1674213531567,0.96,21.209,21.2,25.13]
[1674213531782,0.96,21.208,21.2,25.13]
[1674213532098,0.96,21.207,21.2,25.13]
[1674213532299,0.96,21.206,21.2,25.13]
[1674213532735,0.96,21.207,21.201,10.0]
[1674213533056,10.0,21.214,21.201,10.0]
[1674213533447,10.0,21.214,21.201,29.08]
[1674213535581,17.96,21.213,21.201,29.08]
[1674213535891,18.92,21.213,21.201,29.08]
[1674213536419,10.0,21.212,21.201,29.08]
[1674213536630,18.92,21.211,21.201,29.08]
[1674213537994,10.0,21.21,21.201,29.08]
[1674213538203,18.92,21.209,21.2,15.13]
[1674213538626,10.0,21.208,21.2,15.13]
[1674213538828,18.92,21.207,21.2,15.13]
[1674213539031,10.0,21.205,21.2,15.13]
[1674213539360,35.37,21.206,21.193,29.07]
[1674213539550,0.96,21.205,21.2,15.15]
[1674213539760,0.96,21.205,21.194,10.0]
[1674213539998,0.96,21.206,21.194,10.0]
[1674213540222,0.96,21.205,21.2,15.15]
[1674213540420,0.96,21.205,21.194,10.0]
[1674213540741,0.96,21.205,21.195,29.15]
[1674213541762,0.96,21.205,21.196,30.0]
[1674213541974,0.96,21.206,21.197,29.15]
[1674213542184,0.96,21.206,21.2,15.15]
[1674213542416,45.36,21.212,21.2,15.15]
[1674213542608,10.0,21.212,21.2,15.15]
[1674213544095,18.92,21.211,21.2,15.15]
[1674213545873,10.0,21.21,21.2,15.15]
[1674213546085,18.92,21.209,21.2,15.15]
[1674213546296,20.0,21.208,21.195,29.13]
[1674213546509,18.92,21.207,21.193,29.14]
[1674213546914,10.0,21.206,21.193,29.14]
[1674213547125,18.92,21.205,21.193,29.14]
[1674213547554,18.92,21.205,21.191,29.14]
[1674213547767,10.0,21.204,21.19,54.23]
[1674213547980,18.92,21.203,21.19,44.23]
[1674213548401,18.92,21.203,21.19,15.09]
[1674213548811,10.0,21.202,21.19,15.09]
[1674213549015,18.92,21.201,21.19,15.09]
[1674213549567,10.0,21.2,21.19,15.09]
[1674213549875,18.92,21.199,21.19,15.09]
[1674213554923,10.0,21.198,21.19,15.09]
[1674213555131,18.92,21.197,21.19,15.09]
[1674213556589,10.0,21.196,21.19,15.09]
[1674213556800,18.92,21.195,21.19,15.09]
[1674213559647,10.0,21.193,21.182,56.26011719]
[1674213559844,0.96,21.192,21.182,56.26011719]
[1674213560056,18.92,21.192,21.182,56.26011719]
[1674213560272,0.96,21.191,21.182,56.26011719]
[1674213560493,0.96,21.19,21.182,56.26011719]
[1674213561318,0.96,21.19,21.182,46.26011719]
[1674213561533,0.96,21.19,21.181,30.47]
[1674213561534,0.96,21.189,21.181,30.47]
[1674213561854,0.96,21.188,21.181,10.0]
[1674213566701,35.39,21.195,21.181,10.0]
[1674213566921,35.39,21.197,21.182,16.99011719]
[1674213567105,35.39,21.197,21.184,10.0]
[1674213568068,17.96,21.196,21.184,10.0]
[1674213568274,0.96,21.195,21.184,10.0]
[1674213568483,0.96,21.194,21.184,10.0]
[1674213568677,0.96,21.193,21.184,10.0]
[1674213569238,0.96,21.192,21.184,10.0]
[1674213571321,0.96,21.191,21.184,10.0]
[1674213573113,0.96,21.192,21.184,10.0]
[1674213573329,0.96,21.193,21.184,10.0]
[1674213573634,0.96,21.192,21.184,10.0]
[1674213574982,0.96,21.192,21.183,10.0]
[1674213576567,0.96,21.192,21.183,41.08]
[1674213577611,0.96,21.192,21.183,31.08]
[1674213577824,0.96,21.192,21.181,10.0]
[1674213579077,0.96,21.191,21.181,10.0]
[1674213580884,153.5354,21.197,21.182,46.32011719]
[1674213581196,118.1454,21.197,21.183,10.0]
[1674213581437,118.1454,21.197,21.185,10.0]
[1674213582032,17.0,21.196,21.185,10.0]
[1674213582246,0.96,21.195,21.185,10.0]
[1674213583079,0.96,21.194,21.185,10.0]
[1674213584357,0.96,21.194,21.184,29.44]
[1674213584566,0.96,21.193,21.183,10.0]
[1674213584765,0.96,21.192,21.183,10.0]
[1674213584976,0.96,21.191,21.183,10.0]
[1674213589102,0.96,21.19,21.183,10.0]
[1674213590897,0.96,21.19,21.182,32.1]
[1674213591090,0.96,21.189,21.181,41.93]
[1674213592144,0.96,21.189,21.181,31.93]
[1674213592355,0.96,21.189,21.181,10.0]
[1674213595641,0.96,21.189,21.18,57.06]
[1674213596254,0.96,21.189,21.181,10.0]
[1674213596899,45.39,21.196,21.181,10.0]
[1674213597531,45.39,21.196,21.182,31.37]
[1674213597741,45.39,21.196,21.183,10.0]
[1674213598142,18.92,21.195,21.183,10.0]
[1674213598687,35.39,21.196,21.183,10.0]
[1674213598901,118.1454,21.197,21.183,10.0]
[1674213599936,0.96,21.196,21.183,10.0]
[1674213600150,0.96,21.195,21.183,10.0]
[1674213602997,10.96,21.195,21.183,10.0]
[1674213603191,17.96,21.194,21.183,10.0]
[1674213603398,0.96,21.193,21.183,10.0]
[1674213603607,0.96,21.192,21.183,10.0]
[1674213603818,0.96,21.191,21.183,10.0]
[1674213604033,0.96,21.19,21.183,10.0]
[1674213605104,0.96,21.19,21.181,44.56]
[1674213605947,0.96,21.19,21.181,10.0]
[1674213606355,0.96,21.189,21.181,10.0]
[1674213612265,0.96,21.189,21.18,48.26]
[1674213612482,0.96,21.188,21.18,15.18]
[1674213612666,0.96,21.187,21.18,15.18]
[1674213612974,0.96,21.186,21.18,15.18]
[1674213616355,0.96,21.185,21.18,15.18]
[1674213616564,0.96,21.185,21.177,40.71]
[1674213621632,0.96,21.185,21.177,57.70011719]
[1674213623524,17.0,21.19,21.177,57.70011719]
[1674213623714,35.39,21.194,21.181,10.0]
[1674213624053,35.39,21.195,21.181,10.0]
[1674213624244,35.39,21.195,21.181,42.95]
[1674213625505,17.96,21.194,21.181,42.95]
[1674213625722,0.96,21.193,21.181,42.95]
[1674213625935,0.96,21.192,21.181,42.95]
[1674213626148,0.96,21.191,21.181,42.95]
[1674213626557,0.96,21.19,21.181,42.95]
[1674213632447,0.96,21.19,21.181,10.0]
[1674213632448,0.96,21.189,21.181,10.0]
[1674213632670,0.96,21.188,21.181,10.0]
[1674213635588,0.96,21.187,21.181,10.0]
[1674213635798,0.96,21.186,21.181,10.0]
[1674213639255,0.96,21.186,21.18,25.18]
[1674213639471,0.96,21.186,21.18,15.18]
[1674213644451,35.4,21.191,21.18,15.18]
[1674213644654,18.92,21.19,21.18,15.18]
[1674213644865,1.92,21.19,21.18,15.18]
[1674213646452,1.92,21.19,21.181,10.0]
[1674213649188,1.92,21.19,21.18,15.18]
[1674213649596,18.92,21.19,21.18,15.18]
[1674213650013,17.0,21.189,21.18,15.18]
[1674213650337,1.92,21.188,21.18,15.18]
[1674213650658,0.96,21.187,21.18,15.18]
[1674213650848,0.96,21.188,21.18,15.18]
[1674213651062,0.96,21.189,21.18,15.18]
[1674213651380,0.96,21.188,21.181,10.0]
[1674213657926,0.96,21.188,21.181,39.37]
[1674213658108,0.96,21.188,21.181,10.0]
[1674213658551,0.96,21.189,21.181,10.0]
[1674213658747,45.39,21.195,21.181,10.0]
[1674213658956,10.0,21.195,21.181,39.37]
[1674213660019,17.96,21.194,21.181,39.37]
[1674213660328,0.96,21.193,21.181,39.37]
[1674213660538,0.96,21.192,21.181,39.37]
[1674213660742,0.96,21.191,21.181,10.0]
[1674213661166,0.96,21.19,21.181,10.0]
[1674213662444,0.96,21.19,21.18,44.51]
[1674213662631,0.96,21.19,21.177,29.33]
[1674213662836,17.96,21.19,21.177,10.0]
[1674213663046,0.96,21.189,21.177,10.0]
[1674213663271,0.96,21.188,21.18,15.18]
[1674213663466,0.96,21.187,21.18,15.18]
[1674213663676,0.96,21.186,21.18,15.18]
[1674213664208,0.96,21.185,21.18,15.18]
[1674213664417,0.96,21.185,21.177,39.4]
[1674213664847,0.96,21.186,21.177,39.4]
[1674213665069,0.96,21.186,21.181,10.0]
[1674213670331,0.96,21.186,21.18,15.18]
[1674213670511,0.96,21.185,21.176,39.35]
[1674213670726,0.96,21.184,21.177,20.0]
[1674213670932,0.96,21.184,21.178,10.0]
[1674213673055,0.96,21.184,21.178,39.4]
[1674213673268,0.96,21.184,21.178,10.0]
[1674213674531,17.0,21.19,21.178,10.0]
[1674213674753,0.96,21.189,21.18,15.12]
[1674213675056,0.96,21.188,21.18,15.12]
[1674213675281,0.96,21.187,21.18,15.12]
[1674213675478,0.96,21.186,21.18,15.12]
[1674213677371,0.96,21.187,21.18,15.12]
[1674213677687,0.96,21.186,21.18,15.12]
[1674213678627,0.96,21.186,21.181,10.0]
[1674213678829,35.4,21.192,21.181,10.0]
[1674213679056,35.39,21.194,21.18,44.86]
[1674213679391,10.0,21.194,21.18,44.86]
[1674213679599,35.4,21.193,21.18,15.12]
[1674213680228,0.96,21.192,21.18,15.12]
[1674213680443,10.96,21.191,21.18,15.12]
[1674213680751,17.96,21.19,21.18,15.12]
[1674213680963,0.96,21.189,21.18,15.12]
[1674213681790,0.96,21.189,21.181,10.0]
[1674213681993,35.4,21.193,21.181,10.0]
[1674213682331,10.0,21.194,21.181,10.0]
[1674213682541,35.39,21.196,21.181,10.0]
[1674213682732,35.39,21.196,21.183,10.0]
[1674213683061,35.38,21.201,21.184,29.37]
[1674213683279,35.38,21.201,21.185,10.0]
[1674213683468,35.38,21.201,21.19,15.04]
[1674213684622,10.0,21.202,21.19,15.04]
[1674213685252,0.96,21.201,21.19,15.04]
[1674213685464,10.96,21.2,21.19,15.04]
[1674213685695,0.96,21.199,21.19,15.04]
[1674213686007,0.96,21.198,21.19,15.04]
[1674213686211,0.96,21.197,21.19,15.04]
[1674213686419,0.96,21.196,21.19,15.04]
[1674213686619,0.96,21.195,21.19,15.04]
[1674213687261,0.96,21.195,21.19,15.17]
[1674213691902,0.96,21.194,21.19,15.17]
[1674213692107,0.96,21.193,21.187,10.0]
[1674213694838,17.0,21.199,21.187,10.0]
[1674213695049,1.92,21.198,21.19,15.17]
[1674213695576,0.96,21.198,21.19,15.17]
[1674213695777,1.92,21.199,21.19,15.17]
[1674213698411,18.92,21.199,21.19,15.17]
[1674213699031,10.0,21.198,21.19,15.17]
[1674213699244,18.92,21.197,21.19,15.17]
[1674213699662,54.31,21.197,21.183,40.83]
[1674213703117,10.0,21.196,21.183,30.83]
[1674213703327,18.92,21.195,21.183,30.83]
[1674213703532,18.92,21.195,21.182,10.0]
[1674213703533,10.0,21.194,21.182,10.0]
[1674213703754,18.92,21.193,21.181,10.0]
[1674213706802,1.92,21.193,21.183,10.0]
[1674213716174,1.92,21.193,21.184,29.32]
[1674213716377,1.92,21.193,21.185,10.0]
[1674213717028,1.92,21.193,21.184,29.32]
[1674213717858,1.92,21.193,21.183,10.0]
[1674213718996,1.92,21.193,21.182,29.3]
[1674213719215,18.92,21.193,21.181,39.3]
[1674213720687,54.32,21.193,21.18,54.56]
[1674213721018,18.92,21.193,21.18,25.23]
[1674213721944,18.92,21.193,21.181,10.0]
[1674213723968,18.92,21.193,21.18,25.23]
[1674213725325,18.92,21.193,21.18,15.23]
[1674213725326,35.4,21.192,21.18,15.23]
[1674213725542,18.92,21.191,21.18,15.23]
[1674213726256,10.0,21.19,21.18,15.23]
[1674213726467,18.92,21.189,21.18,15.23]
[1674213727426,10.0,21.188,21.181,28.1717558]
[1674213727619,18.92,21.187,21.181,28.1717558]
[1674213727846,18.92,21.187,21.176,10.0]
[1674213728041,18.92,21.187,21.177,20.0]
[1674213728778,18.92,21.187,21.176,20.0]
[1674213729632,17.0,21.186,21.176,20.0]
[1674213729828,1.92,21.185,21.177,10.0]
[1674213730157,1.92,21.184,21.177,10.0]
[1674213730361,1.92,21.187,21.177,10.0]
[1674213731939,1.92,21.187,21.177,39.41]
[1674213732257,1.92,21.187,21.176,49.41]
[1674213732468,18.92,21.187,21.176,49.41]
[1674213732662,18.92,21.187,21.177,10.0]
[1674213732876,1.92,21.187,21.177,10.0]
[1674213734150,1.92,21.187,21.178,29.39]
[1674213734376,1.92,21.187,21.177,39.39]
[1674213738669,1.92,21.187,21.177,73.11784501]
[1674213739510,1.92,21.187,21.177,68.11784501]
[1674213740034,1.92,21.187,21.177,38.72784501]
[1674213741482,35.4,21.193,21.18,15.12]
[1674213741711,35.39,21.196,21.181,39.37]
[1674213741924,149.5928,21.197,21.181,56.36011719]
[1674213742133,114.2028,21.197,21.182,53.11814388]
[1674213742340,114.2028,21.197,21.183,29.37]
[1674213742663,114.2028,21.197,21.184,10.0]
[1674213743069,114.2028,21.197,21.184,46.12802669]
[1674213743802,18.92,21.196,21.184,46.12802669]
[1674213744429,18.92,21.196,21.184,41.12802669]
[1674213744744,18.92,21.196,21.185,10.0]
[1674213749160,54.31,21.196,21.182,51.61085761]
[1674213749374,54.31,21.196,21.182,5.0]
[1674213749587,10.0,21.195,21.182,5.0]
[1674213749806,54.31,21.194,21.182,5.0]
[1674213752130,10.0,21.193,21.181,10.0]
[1674213752322,18.92,21.192,21.181,10.0]
[1674213752752,1.92,21.192,21.181,10.0]
[1674213755890,11.92,21.192,21.18,15.12]
[1674213756101,17.0,21.191,21.18,15.12]
[1674213756311,1.92,21.19,21.18,15.12]
[1674213757922,1.92,21.19,21.177,37.79]
[1674213758100,37.32,21.19,21.177,32.79]
[1674213758309,17.0,21.189,21.177,32.79]
[1674213758516,47.32,21.188,21.177,32.79]
[1674213758727,17.0,21.187,21.176,20.0]
[1674213758937,1.92,21.186,21.176,20.0]
[1674213759373,11.92,21.186,21.173,29.43]
[1674213759580,17.0,21.185,21.173,29.43]
[1674213759791,1.92,21.184,21.173,29.43]
[1674213760742,11.92,21.184,21.172,29.43]
[1674213760950,17.0,21.183,21.171,29.43]
[1674213761164,1.92,21.182,21.171,29.43]
[1674213761491,10.0,21.181,21.171,29.43]
[1674213761669,18.92,21.18,21.168,29.43]
[1674213762006,18.92,21.18,21.167,29.44]
[1674213762189,10.0,21.179,21.167,29.44]
[1674213762401,18.92,21.178,21.167,29.44]
[1674213763055,10.0,21.177,21.165,29.52]
[1674213763270,18.92,21.176,21.166,20.0]
[1674213763979,18.92,21.176,21.166,30.0]
[1674213765889,18.92,21.176,21.166,20.0]
[1674213766108,17.0,21.175,21.166,20.0]
[1674213766313,1.92,21.174,21.166,20.0]
[1674213766626,1.92,21.176,21.166,20.0]
[1674213766627,0.96,21.173,21.166,20.0]
[1674213766834,18.92,21.176,21.166,20.0]
[1674213767350,1.92,21.176,21.166,20.0]
[1674213772829,1.92,21.176,21.165,30.0]